[Event "Israeli Team-ch 2023"]
[Site "Petah Tikva"]
[Date "2023.05.12"]
[Round "11.15"]
[White "Levin, Guy"]
[Black "Rozen, Eytan"]
[Result "1-0"]
[ECO "D02"]
[WhiteElo "2391"]
[BlackElo "2440"]
[Annotator "TA"]
[PlyCount "65"]
[EventDate "2023.01.13"]
[EventCountry "ISR"]
[SourceTitle "playchess.com"]
[Source "ChessBase"]
[SourceQuality "1"]
[TimeControl "40/5400+30:1800+30"]

{[%evp 11,65,-3,24,14,36,31,44,42,67,68,114,110,137,133,138,157,154,158,180,175,258,181,172,177,177,188,170,172,179,178,216,173,215,186,234,242,241,244,377,367,639,629,825,827,795,777,1661,1612,1618,1564,1457,1297,29992,29992,29996,29987]} 1. d4 {[%emt 0:00:06]} d5 {[%emt 0:00:54]} 2. Nf3 {[%emt 0:00:07]} Nf6 {[%emt 0:00:23]} 3. Bf4 {[%emt 0:00:08]} e6 {[%emt 0:01:08]} 4. e3 {[%emt 0:00:07]} Bd6 {[%emt 0:00:34]} 5. Ne5 {[%emt 0:00:07]} O-O {[%emt 0:01:06]} 6. Nd2 {[%emt 0:00:05]} Nbd7 {[%emt 0:00:46]} 7. Bd3 {[%emt 0:00:49] D02: 1 d4 d5 2 Nf3 sidelines, including 2...Nf6 3 g3 and 2...Nf6 3 Bf4.} Qe7 {[%emt 0:01:35]} 8. h4 {[%emt 0:02:49]} c5 {[%emt 0:10:49]} 9. c3 {[%emt 0:00:18] White is slightly better.} cxd4 {[%emt 0:05:42]} 10. exd4 {[%emt 0:00:17] [#]} Bxe5 $146 {[%emt 0:00:42]} (10... Bc7 $14 {should be considered.}) ({Predecessor:} 10... Ne8 11. Qb1 f5 12. h5 Nxe5 13. dxe5 Bc7 14. Nf3 a6 15. a4 Rb8 16. Nd4 Bb6 {0-1 Gaisinsky,A (2105)-Gimenez Aguirre,I (2265) Titled Tuesday intern op 22nd Feb Late blitz 2022 (3)}) 11. dxe5 $16 {[%emt 0:04:03]} (11. Bxe5 $6 Nxe5 12. dxe5 Nd7 $11) 11... Nc5 {[%emt 0:00:03] [#]} 12. Bc2 {[%emt 0:04:09] White is more active. This pair of bishops is nice.} (12. exf6 $2 {perishes.} Nxd3+ 13. Kf1 Qxf6 $19) 12... Nfe4 {[%emt 0:00:03]} 13. f3 {[%emt 0:17:55]} Nxd2 {[%emt 0:00:17]} 14. Qxd2 {[%emt 0:00:05]} b5 {[%emt 0:12:19] Black is weak on the dark squares} 15. h5 {[%emt 0:09:21][%cal Bh4h5,Bh5h6][%mdl 32]} Kh8 {[%emt 0:14:13]} (15... Bb7 $142 16. h6 g6) 16. h6 {[%emt 0:04:55] hxg7+ would kill now.} g6 {[%emt 0:00:27]} 17. Bg5 $36 {[%emt 0:00:34][%mdl 2048] White is really pushing.} Qc7 {[%emt 0:02:59] [#]} 18. Qf4 $1 {[%emt 0:10:34] Threatening mate with Qf6+.} ({Don't do} 18. Bf6+ Kg8 19. Qg5 Re8 $16) 18... f5 {[%emt 0:10:12]} 19. exf6 {[%emt 0:00:26]} e5 {[%emt 0:05:03]} 20. Qd2 {[%emt 0:08:54]} Bb7 {[%emt 0:03:49]} 21. O-O {[%emt 0:01:29]} Ne6 {[%emt 0:08:49]} 22. Rae1 {[%emt 0:04:29]} Nxg5 {[%emt 0:02:57]} (22... Rae8 $142 23. f4 Nxg5) 23. Qxg5 $18 {[%emt 0:00:03]} Rae8 {[%emt 0:00:00]} 24. Rf2 {[%emt 0:05:56]} b4 {[%emt 0:02:42]} (24... Re6 $142 25. Rfe2 e4 26. fxe4 dxe4 27. Bxe4 (27. Qxb5 Rexf6 28. Qb4 Ba6 $14) 27... Qb6+ 28. Kh2 Qd6+ 29. Qg3 Bxe4 30. Rxe4 Qxg3+ 31. Kxg3 Rexf6) 25. cxb4 {[%emt 0:02:17]} e4 $2 {[%emt 0:02:00]} (25... Re6 26. Rfe2 Qb6+ 27. Kh1 e4 28. fxe4 dxe4 29. Bxe4 Qd6) 26. fxe4 {[%emt 0:01:57]} Re5 {[%emt 0:00:25]} 27. Qf4 {[%emt 0:03:51]} g5 {[%emt 0:01:05]} 28. Qd2 {[%emt 0:03:16] Threatens to win with exd5.} dxe4 {[%emt 0:00:40]} 29. Qd4 {[%emt 0:00:41][%csl LRa7,LRe4]} Rd5 {[%emt 0:01:43]} 30. Qxe4 {[%emt 0:02:04][%cal Of6f7] Intending f7! and mate.} Rd1 {[%emt 0:01:14]} 31. Qe3 {[%emt 0:01:44]} Rd7 {[%emt 0:00:59]} 32. Qxg5 {[%emt 0:01:30]} Rg8 {[%emt 0:00:13]} 33. Qg7+ {[%emt 0:00:17] Black got outplayed after the opening. Excellently played by Levin!   Weighted Error Value: White=0.07 (flawless) /Black=0.60} 1-0

[Event "Israeli Team-ch 2023"]
[Site "Petah Tikva"]
[Date "2023.05.12"]
[Round "11.16"]
[White "Erenberg, Ariel"]
[Black "Kochavi, Ori"]
[Result "0-1"]
[ECO "E06"]
[WhiteElo "2504"]
[BlackElo "2396"]
[Annotator "TA"]
[PlyCount "46"]
[EventDate "2023.01.13"]
[EventCountry "ISR"]
[SourceTitle "playchess.com"]
[Source "ChessBase"]
[SourceQuality "1"]
[TimeControl "40/5400+30:1800+30"]

{[%evp 11,46,26,40,28,25,16,34,33,32,12,24,10,21,14,47,0,0,0,11,0,7,10,0,2,14,0,5,-11,16,19,68,0,0,-179,-167,-1055,-1057]} 1. Nf3 {[%emt 0:00:23]} Nf6 {[%emt 0:00:48]} 2. c4 {[%emt 0:01:40]} e6 {[%emt 0:00:02]} 3. g3 {[%emt 0:01:42]} d5 {[%emt 0:01:48]} 4. Bg2 {[%emt 1:28:45]} Be7 {[%emt 0:00:02]} 5. O-O {[%emt 0:00:00]} O-O {[%emt 0:02:26]} 6. d4 {[%emt 0:00:00]} a5 {[%emt 0:00:03]} 7. Qc2 {[%emt 0:00:00] E06: Closed Catalan: Early deviations.} c6 {[%emt 0:05:09]} 8. Rd1 {[%emt 0:00:00]} b6 {[%emt 0:06:40]} 9. Ne5 {[%emt 0:00:00] [#] White is slightly better.} Bb7 $146 {[%emt 0:00:51]} ({Predecessor:} 9... Nfd7 10. cxd5 cxd5 11. e4 Nxe5 12. exd5 Ng6 13. d6 {½-½ Arakelian,E (2433)-Paronjan,A (2423) Zeleny Shum-B 2000 (7)}) 10. Nc3 {[%emt 0:00:00]} Nfd7 {[%emt 0:07:05]} 11. Nxd7 {[%emt 0:00:00]} Nxd7 {[%emt 0:00:30]} 12. cxd5 {[%emt 0:00:00]} cxd5 {[%emt 0:01:23]} 13. Bf4 {[%emt 0:00:00]} (13. e4 $1 $14 {feels stronger.}) 13... Rc8 {[%emt 0:02:48]} 14. Qb3 {[%emt 0:00:00] Wards off b5} Ba6 {[%emt 0:08:06]} 15. Rdc1 {[%emt 0:00:00]} Rc4 {[%emt 0:12:55]} 16. Qd1 {[%emt 0:00:00]} g5 {[%emt 0:04:38]} 17. Be3 {[%emt 0:00:00]} Nb8 {[%emt 0:00:04]} 18. a3 {[%emt 0:00:00]} f5 {[%emt 0:02:00]} 19. f3 {[%emt 0:00:00]} Bd6 {[%emt 0:24:24]} 20. Bf2 {[%emt 0:00:19]} Qf6 {[%emt 0:00:04]} (20... Nc6 $11) 21. Qb3 {[%emt 0:02:22]} (21. e3 $14) 21... Nd7 $11 {[%emt 0:00:20]} 22. Nb5 $2 {[%emt 0:00:46] [#]} (22. e3 $11) 22... a4 $19 {[%emt 0:00:06][%cal Ba5a4,Ba4b3][%mdl 32]} 23. Rxc4 $2 {[%emt 0:03:30]} (23. Qxc4 dxc4 24. Nxd6) 23... axb3 {[%emt 0:00:13] Weighted Error Value: White=0.53/Black=0.09 (flawless)} 0-1

[Event "Israeli Team-ch 2023"]
[Site "Petah Tikva"]
[Date "2023.05.12"]
[Round "11.17"]
[White "Aharonovich, Itamar"]
[Black "Mindlin, Alon"]
[Result "0-1"]
[ECO "E05"]
[WhiteElo "2327"]
[BlackElo "2432"]
[Annotator "TA"]
[PlyCount "76"]
[EventDate "2023.01.13"]
[EventCountry "ISR"]
[SourceTitle "playchess.com"]
[Source "ChessBase"]
[SourceQuality "1"]
[TimeControl "40/5400+30:1800+30"]

{[%evp 21,76,25,34,34,81,77,72,64,57,64,73,78,75,63,60,55,79,77,97,92,168,164,205,113,108,120,113,100,96,97,86,95,163,90,314,322,275,-302,-289,-416,0,0,0,0,244,221,541,548,546,0,0,-913,-927,-920,-903,-881,-862]} 1. d4 {[%emt 0:00:06]} Nf6 {[%emt 0:00:29]} 2. c4 {[%emt 0:00:15]} e6 {[%emt 0:00:07]} 3. Nf3 {[%emt 0:00:06]} d5 {[%emt 0:00:39]} 4. g3 {[%emt 0:00:22]} Be7 {[%emt 0:00:39]} 5. Bg2 {[%emt 0:00:08]} O-O {[%emt 0:00:07]} 6. O-O {[%emt 0:00:13]} dxc4 {[%emt 0:01:23]} 7. Qa4 {[%emt 0:00:41]} a6 {[%emt 0:01:19]} 8. Qxc4 {[%emt 0:00:27]} b5 {[%emt 0:00:06]} 9. Qc2 {[%emt 0:00:04]} Bb7 {[%emt 0:00:05]} 10. Bd2 {[%emt 0:00:05]} Nbd7 {[%emt 0:00:32]} 11. Ba5 {[%emt 0:04:57]} Rc8 {[%emt 0:00:06]} 12. Nbd2 {[%emt 0:00:07][%cal Bb1d2,Bd2b3,Bb3a5][%mdl 32] E05: Open Catalan: 5 Nf3 Be7.} Qe8 {[%emt 0:05:22]} (12... Nb6 $14) 13. b4 $1 $16 {[%emt 0:00:18]} Nb8 {[%emt 0:06:42]} 14. a3 {[%emt 0:03:15] White is better.} (14. Bxc7 $2 Nd5 15. Qb2 Rxc7 $19) 14... Nc6 {[%emt 0:04:25]} 15. Nb3 {[%emt 0:00:16]} Nxa5 {[%emt 0:03:22]} 16. Nxa5 {[%emt 0:00:25]} Be4 {[%emt 0:00:04]} 17. Qb2 {[%emt 0:07:33]} Nd7 {[%emt 0:10:43]} 18. Rac1 {[%emt 0:02:57]} Bf6 {[%emt 0:07:17][%cal Oc7c5]} 19. Qd2 {[%emt 0:11:02] [#]} h6 $146 {[%emt 0:05:49]} ({Predecessor:} 19... Nb6 20. Qf4 Bxf3 21. Bxf3 e5 22. dxe5 Bxe5 23. Qd2 Qe6 24. Rc6 Qf5 25. Qc2 Qxc2 26. Rxc2 {1-0 Carlier,B (2398)-Rainfray,A (2400) FRA-chT1A 0708 2007 (4.3)}) 20. Rfd1 {[%emt 0:05:44]} g5 {[%emt 0:24:53]} (20... Nb6 $16) 21. Qe3 {[%emt 0:20:38]} Ba8 {[%emt 0:01:56]} 22. Nd2 {[%emt 0:04:27]} (22. h4 $1 $18) 22... Bxg2 {[%emt 0:00:10]} 23. Kxg2 {[%emt 0:00:08][%cal Oh2h4]} Bg7 {[%emt 0:01:02]} 24. Ne4 {[%emt 0:10:18]} e5 {[%emt 0:06:25]} 25. d5 {[%emt 0:06:11][%cal Bd4d5,Bd5d6,Bd6d7][%mdl 32] Nc6 is the strong threat.} f5 {[%emt 0:00:32]} 26. Nc5 {[%emt 0:00:05]} f4 {[%emt 0:04:31]} (26... Nxc5 $16 27. Qxc5 Qf7) 27. Qb3 {[%emt 0:01:35]} ({White should play} 27. Qe4 $1 $18) 27... e4 $2 {[%emt 0:01:09]} (27... Nxc5 $16 28. bxc5 Kh8) 28. d6+ $18 {[%emt 0:06:32]} (28. Nxa6 Qh5 29. Nc6 (29. Rxc7 $2 Rxc7 30. d6+ Rc4 $19) (29. d6+ $2 Kh8 $17) 29... Kh8 $17) 28... Kh8 {[%emt 0:00:04] [#]} 29. Qe6 {[%emt 0:06:04][%mdl 8192] [#]} (29. Nxa6 cxd6 30. Rxc8 Qxc8 31. Rxd6 Ne5 $19) (29. Nxd7 f3+ 30. exf3 exf3+ 31. Kh1 Qxd7 $11) (29. Ne6 $1 $18 {[%cal Re6f8] was the only winning move.} cxd6 30. Nxf8 Qxf8 31. Rxc8 Qxc8 32. gxf4 gxf4 33. Qh3 f3+ 34. exf3) 29... Qh5 $1 $19 {[%emt 0:02:46]} 30. Nxe4 {[%emt 0:02:04]} (30. Qxd7 f3+ 31. exf3 Qxf3+ 32. Kh3 Rf4) (30. Qxe4 {keeps fighting.} Rce8 {[%mdl 64] Skewer} 31. Ne6) 30... Ne5 $2 $40 {[%emt 0:04:01][%mdl 128] Black has some attack.} (30... Qxe2 31. Re1 f3+ 32. Kh3 g4+ 33. Qxg4 $18 (33. Kh4 cxd6 34. Rxe2 fxe2 $16)) ({Black should try} 30... f3+ $19 31. exf3 Qxf3+ 32. Kg1 Rce8 {[%mdl 64] Skewer}) 31. d7 $1 $11 {[%emt 0:02:53]} (31. dxc7 $2 f3+ 32. exf3 Qxf3+ 33. Kg1 Rxc7 $19) 31... Rcd8 {[%emt 0:00:11] aiming for ...f3+.} 32. Rd5 {[%emt 0:01:04]} (32. Qxa6 $2 f3+ 33. exf3 Qxf3+ 34. Kg1 Qxe4 $19) 32... f3+ $2 {[%emt 0:00:19]} (32... Qxe2 $2 33. Rxe5 $18) (32... fxg3 $2 33. hxg3 Nxd7 34. Rxd7 $18) (32... Ng4 $1 $11 33. h3 (33. Rxc7 $2 Qxh2+ 34. Kf3 Qh3 $19) 33... Ne3+ 34. fxe3 Qxe2+ 35. Kh1 Qf3+ 36. Kh2 fxg3+ 37. Nxg3 Qf2+ 38. Kh1 Qxg3) 33. Kg1 $18 {[%emt 0:03:02]} Ng4 {[%emt 0:04:00]} (33... g4 {is tougher.} 34. h4 (34. Qxa6 Qh3) 34... fxe2) 34. h4 $1 {[%emt 0:03:28] Hoping for Nc6.} (34. Qxa6 $2 Qxh2+ 35. Kf1 Qh1#) 34... fxe2 {[%emt 0:00:04][%cal Og4f2] Strongly threatening ...Nxf2!} 35. Re1 $2 {[%emt 0:00:00]} (35. hxg5 $2 Qh2#) (35. Qxa6 Nxf2 36. Qe6 Qf3 $19) (35. Nc6 $18 Nxf2 36. Nxd8 (36. Nxf2 Qf3 $11)) 35... Ne3 $1 $11 {[%emt 0:00:32][%cal Bg4e3,Be3c2,Bc2e1][%mdl 32] Some like it hot} 36. Rd3 $2 {[%emt 0:00:21][%mdl 8192]} (36. fxe3 $11 Qf3 37. hxg5 (37. Kh2 gxh4 38. Rd2 hxg3+ {[%mdl 64] Deflection} 39. Nxg3 Qf2+ 40. Kh3 Qxe1 $17) 37... Qf1+ 38. Rxf1 exf1=Q+ 39. Kh2 Qe2+ 40. Kh3) 36... Nc2 $19 {[%emt 0:00:03] Black is clearly winning.} 37. Nf6 {[%emt 0:00:33]} Qg6 {[%emt 0:01:48]} ({Weaker is} 37... Rxf6 38. Qxe2 Qg6 39. Qe8+ (39. Qxc2 Rxd7 {[%mdl 64] Pin} 40. Ree3 gxh4 $17) 39... Kh7 40. Qxg6+ Kxg6 41. Re8 $18) ({Less strong is} 37... Nxe1 38. Nxh5 Nxd3 39. Qxe2 Rxd7 40. Qe6 $18) 38. Qxe2 {[%emt 0:00:34]} Nxe1 {[%emt 0:00:05] Quite a comeback for Black. A fantastic game!   Weighted Error Value: White=0.68/Black=0.63} 0-1

[Event "Israeli Team-ch 2023"]
[Site "Petah Tikva"]
[Date "2023.05.12"]
[Round "11.18"]
[White "Rozentalis, Eduardas"]
[Black "Iliaguev, Nisim"]
[Result "1/2-1/2"]
[ECO "B13"]
[WhiteElo "2507"]
[BlackElo "2390"]
[Annotator "TA"]
[PlyCount "94"]
[EventDate "2023.01.13"]
[EventCountry "ISR"]
[SourceTitle "playchess.com"]
[Source "ChessBase"]
[SourceQuality "1"]
[TimeControl "40/5400+30:1800+30"]

{[%evp 17,94,28,41,38,56,41,44,43,47,18,47,40,50,45,65,56,58,29,22,0,0,0,0,0,0,0,0,0,21,0,0,0,0,0,76,74,64,35,51,51,56,50,100,10,15,0,0,-10,0,-15,-6,-13,-18,-16,-22,-54,-56,-145,-166,-176,-176,-168,-168,-170,-170,-168,-170,-172,-164,-170,-128,-147,-83,-198,-179,-183,0,-186,0]} 1. e4 {[%emt 0:00:00]} c6 {[%emt 0:00:14]} 2. d4 {[%emt 0:00:13]} d5 {[%emt 0:00:17]} 3. exd5 {[%emt 0:00:03]} cxd5 {[%emt 0:00:07]} 4. Bd3 {[%emt 0:00:03]} Nc6 {[%emt 0:00:10]} 5. c3 {[%emt 0:00:04]} Nf6 {[%emt 0:00:22]} 6. h3 {[%emt 0:00:34]} g6 {[%emt 0:00:08]} 7. Nf3 {[%emt 0:00:10]} Bg7 {[%emt 0:00:06]} 8. O-O {[%emt 0:00:13]} O-O {[%emt 0:00:07]} 9. Re1 {[%emt 0:00:23]} Qc7 {[%emt 0:00:40]} 10. Nbd2 {[%emt 0:07:15] B13: Caro-Kann: Exchange Variation and Panov-Botvinnik Attack.} Nh5 {[%emt 0:03:30]} 11. Nb3 {[%emt 0:02:01]} b6 {[%emt 0:05:48] [#]} 12. Bb5 $146 {[%emt 0:04:45] White is slightly better.} ({Predecessor:} 12. Be3 f6 13. Bb5 Nd8 14. Rc1 Be6 15. Qd2 a6 16. Be2 Bh8 17. c4 Qd7 18. c5 {0-1 Azimova,K (2032)-Li,X (2218) Moscow op-B (Women) 2015 (5)}) 12... Bb7 {[%emt 0:03:59]} 13. Qe2 {[%emt 0:01:41]} e6 {[%emt 0:05:13]} 14. Ne5 {[%emt 0:03:54]} Nf6 {[%emt 0:17:57]} 15. Bf4 {[%emt 0:02:33][%cal Oe5g6] [#] Nxg6! would be deadly.} Qc8 {[%emt 0:00:31]} 16. Rac1 {[%emt 0:08:13] White is much more active. The black rooks are badly placed.} Nd7 {[%emt 0:10:37]} 17. c4 {[%emt 0:09:26]} Ndxe5 {[%emt 0:05:16]} 18. cxd5 {[%emt 0:01:39]} (18. dxe5 $5 {[%cal Rc4d5]} Rd8 19. Red1 dxc4 20. Rxc4 $14) 18... Qd7 $1 {[%emt 0:02:46][%cal Od7d5]} 19. dxe5 {[%emt 0:14:43]} Qxd5 {[%emt 0:09:19] [#] ...Nd4 is the strong threat.} 20. Bc4 {[%emt 0:04:50]} Qd8 {[%emt 0:00:27]} (20... Nd4 $2 21. Qg4 Qxg2+ 22. Qxg2 $18) 21. Red1 {[%emt 0:01:27][%cal Be1d1,Bd1d6,Bd6c6,Bc6c7][%mdl 32]} Qe7 {[%emt 0:02:58]} 22. Rd6 $36 {[%emt 0:02:03][%mdl 2048] Black is under pressure.} Nb4 {[%emt 0:03:40]} 23. Nd4 {[%emt 0:15:07][%cal Rd4e6]} (23. Qd2 $5 {[%cal Rd2b4]} Nd5 24. Bg5 $11) 23... Nd5 $1 {[%emt 0:00:54]} 24. Bxd5 {[%emt 0:01:52]} Bxd5 {[%emt 0:00:11]} 25. Nc6 {[%emt 0:00:39]} Qh4 {[%emt 0:08:15]} (25... Qb7 $11 {remains equal.}) 26. Qe3 {[%emt 0:02:44] Hoping for g4.} (26. g3 {seems wilder.} Qxh3 27. Ne7+ Kh8 28. Nxd5 exd5 29. Rc7) 26... Bxc6 {[%emt 0:02:41]} 27. Rdxc6 {[%emt 0:02:03]} h6 {[%emt 0:01:43] Black is weak on the dark squares} 28. Rc7 {[%emt 0:03:27]} g5 {[%emt 0:00:37]} 29. Bg3 {[%emt 0:00:08]} Qa4 {[%emt 0:00:11]} (29... Qh5 $14) 30. a3 {[%emt 0:00:47]} (30. f4 $16) 30... Rad8 $11 {[%emt 0:01:20]} 31. Kh2 {[%emt 0:02:28]} Rd5 {[%emt 0:01:15]} 32. Rc8 {[%emt 0:01:46]} Qd7 {[%emt 0:04:47]} 33. Rxf8+ {[%emt 0:00:10]} Bxf8 {[%emt 0:00:30]} 34. h4 {[%emt 0:00:21]} Be7 {[%emt 0:02:30]} 35. hxg5 {[%emt 0:00:48]} hxg5 {[%emt 0:01:43]} 36. Rc2 {[%emt 0:01:26]} Kg7 {[%emt 0:00:30]} 37. f4 {[%emt 0:01:40]} (37. Qf3 $15) 37... Qd8 {[%emt 0:01:21] Threatens to win with ...Rd3.} 38. Qe2 {[%emt 0:01:35]} Qh8+ {[%emt 0:03:50]} 39. Kg1 {[%emt 0:00:02]} Bc5+ {[%emt 0:00:45]} 40. Bf2 {[%emt 0:00:07]} Bxf2+ {[%emt 0:01:12]} ({Worse is} 40... gxf4 41. Bxc5 bxc5 42. b4 $11) 41. Kxf2 $19 {[%emt 0:30:05][%mdl 4096] Endgame KQR-KQR} Qh4+ {[%emt 0:30:53]} (41... gxf4 $2 42. Qg4+ Kf8 43. Rc8+ (43. Qxf4 Qxe5 44. Qxe5 Rxe5 $17) 43... Ke7 44. Rxh8 $18) 42. g3 {[%emt 0:00:38]} Qh2+ {[%emt 0:00:59]} 43. Kf3 {[%emt 0:00:16]} Qh1+ {[%emt 0:00:23]} 44. Ke3 {[%emt 0:00:00]} Qg1+ {[%emt 0:00:00]} (44... Rd7 $142 45. Qg2 Qe1+ 46. Kf3 Rd4) 45. Qf2 {[%emt 0:00:00]} (45. Kf3 $17) 45... Qd1 {[%emt 0:00:00][%csl Gd5][%cal Rd1d3]} 46. Qe2 {[%emt 0:00:00] Inhibits Qd3+.} Qg1+ {[%emt 0:00:00]} 47. Qf2 $1 {[%emt 0:00:00]} Qd1 $2 {[%emt 0:00:00] Weighted Error Value: White=0.17 (very precise) /Black=0.18 (very precise)} ({Black should try} 47... Qb1 $19 48. Kf3 Qh1+ 49. Kg4 Qe4) 1/2-1/2

[Event "Israeli Team-ch 2023"]
[Site "Petah Tikva"]
[Date "2023.05.12"]
[Round "11.19"]
[White "Tzidkiya, Yeshaayahu"]
[Black "Kupervaser, Erez"]
[Result "1-0"]
[ECO "C67"]
[WhiteElo "2415"]
[BlackElo "2293"]
[Annotator "TA"]
[PlyCount "43"]
[EventDate "2023.01.13"]
[EventCountry "ISR"]
[SourceTitle "playchess.com"]
[Source "ChessBase"]
[SourceQuality "1"]
[TimeControl "40/5400+30:1800+30"]

{[%evp 21,43,38,45,8,80,86,162,175,172,171,329,325,925,923,910,916,899,870,903,883,890,860,860,862]} 1. e4 {[%emt 0:00:03]} e5 {[%emt 0:00:32]} 2. Nf3 {[%emt 0:00:10]} Nc6 {[%emt 0:00:02]} 3. Bb5 {[%emt 0:00:53]} Nf6 {[%emt 0:01:12]} 4. d4 {[%emt 0:03:41]} Nxe4 {[%emt 0:07:41]} 5. Qe2 {[%emt 0:03:47]} Nd6 {[%emt 0:03:28]} 6. Bxc6 {[%emt 0:02:01]} bxc6 {[%emt 0:05:13]} 7. dxe5 {[%emt 0:00:05]} Nb7 {[%emt 0:00:14]} 8. O-O {[%emt 0:09:34]} Be7 {[%emt 0:02:56]} 9. Nc3 {[%emt 0:00:06][%cal Bb1c3,Bc3e4,Be4f6][%mdl 32]} Nc5 {[%emt 0:00:05]} 10. Nd4 {[%emt 0:03:01]} O-O {[%emt 0:07:44]} 11. Rd1 {[%emt 0:01:27]} Qe8 {[%emt 0:03:23]} 12. Nf5 {[%emt 0:02:27][%cal Oc1h6] [#] aiming for Bh6! C67: Ruy Lopez: Berlin Defence: 4 0-0 Nxe4.} Ne6 {[%emt 0:10:35]} (12... f6 $11 {keeps the balance.}) 13. Ne4 $16 {[%emt 0:10:12] White is much more active. The black rooks are badly placed. Excellent horsemanship.} Rb8 {[%emt 0:01:25]} (13... Bd8 $16 {was called for.}) 14. b3 $18 {[%emt 0:01:24] White is clearly better.} Rb5 {[%emt 0:08:01] [#]} 15. Bb2 $146 {[%emt 0:07:47] Hoping for c4.} ({Predecessor:} 15. f4 Rd5 16. Be3 Bb7 17. Qg4 Kh8 18. c4 Rxd1+ 19. Rxd1 g6 20. Nxe7 Qxe7 21. Nf6 {1-0 Fawcett,E-O'Hanlon,J Southsea 1949 (8)}) 15... d5 {[%emt 0:00:42] [#]} (15... d6 16. Nxe7+ {[%mdl 64] Remove Defender} Qxe7) 16. Nf6+ $1 {[%emt 0:01:38][%mdl 64] Promotion} ({Less strong is} 16. exd6 Rxf5 17. dxe7 Qxe7 $16) 16... gxf6 $2 {[%emt 0:08:16]} (16... Bxf6 17. exf6 g6) 17. exf6 {[%emt 0:01:04] Intending Qg4+ and mate. White is clearly winning.} d4 {[%emt 0:05:54]} 18. Qg4+ {[%emt 0:02:15]} Kh8 {[%emt 0:00:39]} 19. fxe7 {[%emt 0:00:06]} Rxf5 {[%emt 0:08:01]} 20. exf8=R+ {[%emt 0:00:27]} Nxf8 {[%emt 0:00:06]} 21. Qxd4+ {[%emt 0:00:32]} f6 {[%emt 0:00:48]} 22. Qd8 {[%emt 0:00:29] Black got outplayed after the opening. Excellently played by Tzidkiya!   Weighted Error Value: White=0.04 (flawless) /Black=0.56} 1-0